bitfinex-derivatives/quotes_SOLF0:USTF0_20251119
["timestamp","ask_amount","ask_price","bid_price","bid_amount"]
[1763518953348,9.5704,141.16,141.1,3.13489326]
[1763518953555,0.04963321,141.14,141.12,0.05102349]
[1763518953854,0.04963321,141.14,141.12,3.14102349]
[1763518954655,0.04963321,141.14,141.12,0.05102349]
[1763518954656,3.23963321,141.14,141.12,0.05102349]
[1763518955754,9.62073321,141.14,141.12,0.05102349]
[1763518955959,3.19,141.13,141.12,0.05102349]
[1763518956757,6.43073321,141.14,141.12,0.05102349]
[1763518957060,9.62073321,141.14,141.12,0.05102349]
[1763518957361,3.23963321,141.14,141.12,0.05102349]
[1763518958153,9.62063321,141.14,141.12,0.05102349]
[1763518958660,3.19,141.13,141.12,0.05102349]
[1763518960057,9.5714,141.13,141.12,0.05102349]
[1763518960757,15.1099734,141.13,141.12,0.05102349]
[1763518960959,9.5714,141.13,141.12,0.05102349]
[1763518961357,3.19,141.1,141.06,37.18]
[1763518961557,3.19,141.1,141.06,40.27]
[1763518961759,3.19,141.1,141.07,3.09]
[1763518962568,3.23517517,141.1,141.07,3.14350716]
[1763518965179,3.23517517,141.1,141.07,0.05350716]
[1763518965475,9.5737,141.08,141.07,0.05350716]
[1763518966466,15.11529771,141.08,141.07,0.05350716]
[1763518969782,3.19,141.04,140.99,3.09]
[1763518970671,0.05315433,141.03,141.0,0.05414253]
[1763518970975,0.05315433,141.03,141.01,3.09]
[1763518971276,0.05315433,141.03,141.01,9.4767]
[1763518971479,3.19,141.09,141.02,3.09]
[1763518971877,9.5727,141.11,141.06,3.09]
[1763518972076,8.72998434,141.1,141.06,3.09]
[1763518972282,3.19,141.1,141.06,3.09]
[1763518972584,0.04470021,141.09,141.07,0.04627906]
[1763518972975,0.04470021,141.09,141.07,3.13627906]
[1763518974572,0.04470021,141.09,141.07,9.52037906]
[1763518974873,0.04470021,141.09,141.08,3.09]
[1763518976177,3.19,141.16,141.1,3.09]
[1763518976386,3.19,141.14,141.07,3.09]
[1763518976574,3.19,141.12,141.07,3.09]
[1763518976880,3.19,141.15,141.08,3.09]
[1763518977074,5.54108281,141.14,141.08,3.09]
[1763518977384,0.05178156,141.12,141.1,3.14178862]
[1763518977888,3.24178156,141.12,141.1,0.05178862]
[1763518980592,3.19,141.11,141.1,0.05178862]
[1763518980893,3.19,141.05,140.95,3.09]
[1763518981082,3.19,141.03,140.95,3.09]
[1763518981688,0.04745565,141.0,140.98,3.14245265]
[1763518983789,3.01745565,141.0,140.98,0.05245265]
[1763518986492,2.97,140.98,140.91,3.13]
[1763518986680,2.97,140.96,140.91,3.13]
[1763518987398,1.89011341,140.97,140.92,0.04703397]
[1763518987399,2.97,140.94,140.92,0.04703397]
[1763518991188,2.97,140.94,140.88,3.13]
[1763518991189,2.97,140.93,140.88,3.13]
[1763518991400,2.97,140.92,140.86,6.3934]
[1763518991593,2.97,140.92,140.86,9.5234]
[1763518991794,2.97,140.92,140.86,3.13]
[1763518992196,1.89011341,140.93,140.88,0.04730753]
[1763518992197,0.04698759,140.9,140.88,0.04730753]
[1763518992494,3.01698759,140.9,140.88,0.04730753]
[1763518994796,2.97,140.89,140.8,3.13]
[1763518995103,2.97,140.89,140.78,1.89011341]
[1763518995104,2.97,140.86,140.78,1.89011341]
[1763518995400,2.97,140.86,140.78,3.13]
[1763518995588,2.97,140.85,140.78,3.13]
[1763518995994,3.01699795,140.83,140.8,0.04901808]
[1763518996194,3.01699795,140.83,140.8,3.17901808]
[1763518998401,0.04699795,140.83,140.8,3.17901808]
[1763518998598,0.04699795,140.83,140.81,3.13]
[1763518999198,0.04699795,140.83,140.81,9.5256]
[1763518999395,2.97,140.87,140.82,3.13]
[1763518999897,2.97,140.87,140.84,3.13]
[1763519000091,4.86011341,140.9,140.84,3.13]
[1763519000297,2.97,140.89,140.82,3.13]
[1763519000490,2.97,140.89,140.81,37.22]
[1763519000491,0.04551402,140.87,140.84,3.17915735]
[1763519000995,3.01551402,140.87,140.84,3.17915735]
[1763519001197,3.01551402,140.87,140.84,0.04915735]
[1763519001396,0.04551402,140.87,140.84,3.17915735]
[1763519001804,3.16551402,140.87,140.84,0.04915735]
[1763519003904,0.04551402,140.87,140.84,3.24915735]
[1763519004101,3.16551402,140.87,140.84,3.24915735]
[1763519004297,0.04551402,140.87,140.84,3.24915735]
[1763519005907,0.04551402,140.87,140.84,9.64355735]
[1763519006104,0.04551402,140.87,140.85,3.2]
[1763519007002,3.16551402,140.87,140.84,0.04915735]
[1763519007311,3.16551402,140.87,140.84,3.24915735]
[1763519008308,3.16551402,140.87,140.84,0.04915735]
[1763519011405,3.12,140.86,140.84,0.04915735]
[1763519012109,3.12,140.85,140.84,0.04915735]
[1763519012306,3.12,140.85,140.78,3.2]
[1763519012614,3.12,140.84,140.78,3.2]
[1763519012905,1.89011341,140.85,140.78,3.2]
[1763519012906,3.12,140.82,140.78,3.2]
[1763519013105,3.12,140.82,140.76,3.2]
[1763519013301,101.35781341,140.85,140.78,0.04581111]
[1763519013302,3.25902863,140.8,140.78,0.04581111]
[1763519013500,1.89011341,140.83,140.73,3.07]
[1763519013501,3.21,140.79,140.73,3.07]
[1763519013708,3.21,140.78,140.69,4.96011341]
[1763519013914,5.10011341,140.77,140.7,3.07]
[1763519014508,3.25887295,140.75,140.72,0.04767753]
[1763519014711,3.25887295,140.75,140.72,3.11767753]
[1763519015716,3.25887295,140.75,140.72,0.04767753]
[1763519017517,3.25887295,140.75,140.72,3.11767753]
[1763519017819,0.04887295,140.75,140.72,3.11767753]
[1763519018022,0.04887295,140.75,140.74,3.07]
[1763519018318,40.49,140.81,140.74,3.07]
[1763519018622,40.49,140.81,140.75,6.3985]
[1763519019027,4.93962938,140.85,140.74,3.07]
[1763519019028,3.21,140.85,140.77,3.07]
[1763519019214,3.26236323,140.82,140.8,0.0495595]
[1763519019415,3.2576101,140.82,140.8,0.0495595]
[1763519019614,3.2576101,140.82,140.8,3.1195595]
[1763519019615,0.0476101,140.82,140.8,3.1195595]
[1763519019912,0.0476101,140.82,140.8,0.0495595]
[1763519020519,3.2576101,140.82,140.8,0.0495595]
[1763519021420,3.21,140.8,140.72,3.07]
[1763519022319,3.25966947,140.77,140.75,0.04699098]
[1763519022526,3.21,140.83,140.75,3.11699098]
[1763519022822,0.04539434,140.8,140.77,3.07]
[1763519023023,0.04539434,140.8,140.77,3.11588753]
[1763519024009,3.21,140.78,140.77,0.04588753]
[1763519024209,15.11985615,140.78,140.72,3.07]
[1763519024526,8.72245615,140.77,140.72,3.07]
[1763519024724,3.21,140.77,140.72,3.07]
[1763519025020,5.52350399,140.76,140.72,3.07]
[1763519025330,0.04661458,140.75,140.72,3.07]
[1763519027528,0.04661458,140.75,140.68,1.23667377]
[1763519027529,3.21,140.73,140.69,3.07]
[1763519027825,0.04661458,140.75,140.69,3.07]
[1763519028021,8.73553325,140.74,140.69,3.07]
[1763519028223,5.52553325,140.73,140.69,3.07]
[1763519028528,3.21,140.74,140.69,3.07]
[1763519028709,5.52904339,140.73,140.69,3.07]
[1763519028914,3.21,140.74,140.69,3.07]
[1763519029117,5.53070853,140.73,140.69,3.07]
[1763519029326,3.21,140.74,140.69,3.07]
[1763519029625,5.53301281,140.73,140.69,3.07]
[1763519029923,3.21,140.74,140.69,3.07]
[1763519030117,5.5328349,140.73,140.69,3.07]
[1763519030329,5.5328349,140.72,140.69,3.07]
[1763519030514,0.04572113,140.72,140.69,3.07]
[1763519030916,8.73197243,140.71,140.67,3.07]
[1763519031115,5.37477984,140.7,140.67,3.07]
[1763519031315,8.71599154,140.76,140.72,0.19]
[1763519031316,6.57329853,140.76,140.72,0.19]
[1763519031516,3.21,140.79,140.72,0.19]
[1763519031916,3.21,140.79,140.73,6.3994]
[1763519032121,8.71599154,140.82,140.74,0.19]
[1763519032324,0.0500902,140.77,140.75,0.23682458]
[1763519032533,3.21,140.82,140.78,0.19]
[1763519032718,0.05435134,140.81,140.79,0.04682458]
[1763519033029,0.05435134,140.81,140.79,0.23682458]
[1763519033222,0.05435134,140.81,140.79,0.04682458]
[1763519035134,3.26435134,140.81,140.79,0.04682458]
[1763519035335,3.26435134,140.81,140.74,37.32]
[1763519035525,3.21,140.8,140.74,37.32]
[1763519035927,3.21,140.8,140.74,37.51]
[1763519036728,3.21,140.8,140.74,0.19]
[1763519037722,9.6066,140.8,140.74,0.19]
[1763519037927,3.21,140.79,140.74,0.19]
[1763519038128,3.25634481,140.78,140.74,0.19]
[1763519040039,99.4693,140.85,140.74,0.19]
[1763519040040,3.21,140.87,140.79,0.15]
[1763519040243,3.21,140.87,140.8,0.15]
[1763519040430,3.21,140.91,140.83,0.15]
[1763519041025,0.04690913,140.88,140.86,0.19634481]
[1763519041230,104.30972938,140.99,140.87,0.15]
[1763519041231,3.21,140.94,140.87,0.15]
[1763519041633,3.21,140.94,140.84,37.47]
[1763519041838,3.21,140.92,140.84,37.47]
[1763519042227,0.05166945,140.89,140.87,0.04833559]
[1763519042442,3.26166945,140.89,140.87,0.04833559]
[1763519043140,0.05166945,140.89,140.87,0.04833559]
[1763519046443,0.05166945,140.89,140.87,0.19833559]
[1763519047842,3.22,140.95,140.88,0.15]
[1763519048435,3.22,140.95,140.89,6.3921]
[1763519048746,3.22,140.95,140.88,0.15]
[1763519048945,0.04543905,140.93,140.9,0.05240126]
[1763519049133,0.04543905,140.93,140.9,0.20240126]
[1763519050638,3.26543905,140.93,140.9,0.05240126]
[1763519050839,3.22,141.01,140.92,0.1]
[1763519051040,3.22,141.0,140.93,0.1]
[1763519051338,3.22,141.0,140.96,0.1]
[1763519051538,3.22,141.06,140.96,0.1]
[1763519051731,3.22,141.06,140.97,6.3885]
[1763519051936,3.22,141.02,141.0,0.04698481]
[1763519052336,4.64,141.02,140.92,0.1]
[1763519052547,99.39726146,141.03,140.92,0.1]
[1763519052548,3.22,141.01,140.92,0.1]
[1763519052838,3.22,140.99,140.92,6.4907]
[1763519053442,3.26934064,140.97,140.94,0.05451035]
[1763519053639,3.26564775,140.97,140.94,0.04837122]
[1763519054343,0.04564775,140.97,140.94,0.14837122]
[1763519055541,0.04564775,140.97,140.95,0.1]
[1763519056245,3.26564775,140.97,140.94,0.04837122]
[1763519056651,3.22,140.95,140.87,0.1]
[1763519056846,3.22,140.95,140.85,37.46]
[1763519057148,3.22,140.93,140.86,6.3935]
[1763519057443,3.22,140.93,140.86,6.4935]
[1763519057647,0.05086648,140.91,140.88,0.0543813]
[1763519057850,0.05086648,140.91,140.89,0.1]
[1763519061351,3.27086648,140.91,140.88,0.0543813]
[1763519062150,6.392,140.9,140.88,0.0543813]
[1763519062350,3.0,140.89,140.88,0.0543813]
[1763519062552,3.0,140.89,140.83,0.1]
[1763519062743,3.0,140.89,140.83,37.46]
[1763519062943,9.3929,140.88,140.83,37.46]
[1763519063147,3.0,140.88,140.83,37.46]
[1763519063448,3.0,140.88,140.84,0.11]
[1763519063757,0.05144582,140.87,140.85,0.04062511]
[1763519064753,99.4129,140.93,140.85,0.04062511]
[1763519064754,3.0,140.99,140.89,6.4521]
[1763519065054,3.0,140.99,140.89,0.06]
[1763519065251,3.0,140.99,140.9,6.3916]
[1763519065459,3.0,140.99,140.9,0.06]
[1763519065656,0.0532268,140.96,140.93,0.04889203]
[1763519069356,0.0532268,140.96,140.93,0.10889203]
[1763519070164,0.0532268,140.96,140.93,6.49919203]
[1763519070377,0.0532268,140.96,140.94,0.06]
[1763519070763,3.0,141.04,140.99,6.3877]
[1763519071460,3.0,141.09,141.0,99.3571]
[1763519071868,0.04848833,141.06,141.03,0.04936269]
[1763519073465,0.04848833,141.06,141.03,6.43516269]
[1763519073859,0.04848833,141.06,141.04,37.36]
[1763519074568,0.04848833,141.06,141.04,43.7453]
[1763519075158,3.2,141.15,141.05,99.3239]
[1763519075361,3.2,141.15,141.06,136.675]
[1763519075569,9.5807,141.15,141.02,99.3423]
[1763519075768,3.2,141.13,141.03,43.7458]
[1763519075969,3.2,141.12,141.03,43.7458]
[1763519076271,3.25382223,141.09,141.06,0.0542968]
[1763519077263,0.05382223,141.09,141.06,0.0542968]
[1763519077657,0.05382223,141.09,141.07,37.36]
[1763519078062,3.2,141.15,141.07,37.36]
[1763519078363,3.2,141.15,141.08,99.3017]
[1763519078566,3.2,141.15,141.1,6.3826]
[1763519078764,3.2,141.15,141.11,37.36]
[1763519079275,0.04537963,141.14,141.12,0.05394166]
[1763519082877,0.04537963,141.14,141.12,6.43544166]
[1763519084777,3.2,141.19,141.14,6.3808]
[1763519084977,3.2,141.19,141.15,37.34]
[1763519085272,3.2,141.19,141.15,43.7204]
[1763519085779,0.0540975,141.18,141.16,0.05029106]
[1763519086578,0.0540975,141.18,141.16,37.37029106]
[1763519087980,3.2540975,141.18,141.16,0.05029106]
[1763519088673,3.2540975,141.18,141.11,37.32]
[1763519088879,3.2,141.17,141.11,37.32]
[1763519089576,3.2,141.17,141.1,37.32]
[1763519089883,3.2,141.14,141.12,0.05444772]
[1763519091178,0.0528213,141.15,141.12,0.05444772]
[1763519091682,3.2528213,141.15,141.12,0.05444772]
[1763519092071,0.0528213,141.15,141.12,0.05444772]
[1763519092473,0.0528213,141.15,141.12,6.43624772]
[1763519093278,0.0528213,141.15,141.12,0.05444772]
[1763519093279,3.2528213,141.15,141.12,0.05444772]
[1763519095586,3.2,141.13,141.12,0.05444772]
[1763519096884,3.2,141.13,141.07,6.3838]
[1763519097078,3.2,141.13,141.08,37.32]
[1763519098083,0.0463205,141.12,141.09,0.05063381]
[1763519098483,3.2463205,141.12,141.09,0.05063381]
[1763519098680,9.6283205,141.12,141.09,0.05063381]
[1763519098875,3.2,141.11,141.09,0.05063381]
[1763519099278,0.0463205,141.12,141.09,0.05063381]
[1763519099279,3.2463205,141.12,141.09,0.05063381]
[1763519100290,0.0463205,141.12,141.09,0.05063381]
[1763519101183,3.2463205,141.12,141.09,0.05063381]
[1763519101693,3.2,141.1,141.09,0.05063381]
[1763519102089,3.2,141.1,141.04,37.32]
[1763519102593,3.2,141.1,141.04,43.7055]
[1763519102794,3.2,141.1,141.04,37.32]
[1763519102983,0.05131077,141.08,141.06,0.05018898]
[1763519103895,0.05131077,141.08,141.06,6.43478898]
[1763519108189,0.05131077,141.08,141.06,43.73478898]
[1763519108587,3.17,141.16,141.07,99.3068]
[1763519108786,3.17,141.16,141.08,99.3017]
[1763519109086,3.17,141.16,141.04,117.01104887]
[1763519109087,3.17,141.16,141.04,99.3265]
[1763519109291,3.17,141.14,141.08,6.3837]
[1763519109691,3.21837816,141.12,141.1,0.048729]
[1763519109888,0.04951622,141.12,141.1,0.048729]
[1763519110096,0.04951622,141.12,141.11,37.32]
[1763519110287,3.17,141.16,141.11,37.32]
[1763519110491,3.17,141.19,141.11,37.32]
[1763519110901,8.539248,141.18,141.12,6.3815]
[1763519111192,3.17,141.18,141.12,6.3815]
[1763519111391,3.22074943,141.16,141.14,0.05001295]
[1763519111600,3.2217681,141.16,141.14,0.05001295]
[1763519112198,8.54993158,141.15,141.14,0.05001295]
[1763519119100,3.17,141.12,141.02,99.3416]
[1763519119405,8.54993158,141.11,141.03,37.32]
[1763519119703,5.37993158,141.1,141.03,37.32]
[1763519119904,3.17,141.11,141.06,6.3845]
[1763519120101,5.46467511,141.1,141.07,0.04725747]
[1763519120297,0.05095683,141.1,141.08,37.32]
[1763519121902,0.05095683,141.1,141.08,43.7034]
[1763519124510,3.17,141.15,141.09,99.2949]
[1763519125603,0.05456061,141.13,141.11,0.04763638]
[1763519125809,0.05456061,141.13,141.11,6.42953638]
[1763519125991,0.05456061,141.13,141.12,37.3]
[1763519126199,3.22456061,141.13,141.11,0.04763638]
[1763519126403,9.60606061,141.13,141.11,0.04763638]
[1763519126602,3.17,141.12,141.07,37.32]
[1763519127705,3.17,141.1,141.08,0.04704426]
[1763519128396,3.17,141.09,141.08,0.04704426]
[1763519129411,3.21557654,141.11,141.08,0.04704426]
[1763519130904,9.59817654,141.11,141.08,0.04704426]
[1763519131112,3.21557654,141.11,141.08,0.04704426]
[1763519132412,9.59797654,141.11,141.08,0.04704426]
[1763519132604,3.17,141.1,141.08,0.04704426]
[1763519133106,9.5528,141.1,141.08,0.04704426]
[1763519134102,3.06,141.09,141.08,0.04704426]
[1763519137214,9.4433,141.09,141.08,0.04704426]
[1763519137416,9.4433,141.09,141.04,37.32]
[1763519137417,3.06,141.08,140.96,99.3852]
[1763519137716,3.06,141.06,140.97,37.32]
[1763519137920,3.06,141.06,140.97,136.6971]
[1763519138515,0.0474772,141.03,141.0,0.05326752]
[1763519139314,0.0474772,141.03,141.01,6.3867]
[1763519141110,3.06,141.1,141.04,6.3855]
[1763519141717,3.06,141.1,141.02,37.32]
[1763519142119,0.05379745,141.07,141.05,6.43868746]
[1763519144512,0.05379745,141.07,141.05,0.05368746]
[1763519145318,3.11379745,141.07,141.05,0.05368746]
[1763519145510,3.11379745,141.07,140.96,99.3864]
[1763519145710,3.06,141.07,140.97,37.32]
[1763519145921,3.06,141.05,140.97,43.7086]
[1763519146123,3.06,141.05,140.97,37.32]
[1763519146622,0.05325488,141.02,141.0,0.05121442]
[1763519147319,0.05325488,141.02,141.0,6.43841442]
[1763519147822,0.05325488,141.02,141.01,37.32]
[1763519148526,0.05325488,141.02,141.0,6.43841442]
[1763519148820,0.05325488,141.02,141.01,37.3]
[1763519149614,0.05325488,141.02,141.0,6.43841442]
[1763519149815,0.05325488,141.02,141.0,43.73841442]
[1763519150517,3.06,141.09,141.03,6.3859]
[1763519150913,3.06,141.09,141.01,1.88800874]
[1763519151111,3.06,141.08,141.01,6.3865]
[1763519151314,3.06,141.08,141.0,37.3]
[1763519151619,0.04698382,141.05,141.03,6.43785124]
[1763519153920,0.04698382,141.05,141.03,0.05195124]
[1763519154716,3.10698382,141.05,141.03,0.05195124]
[1763519155922,3.10698382,141.05,141.03,6.43775124]
[1763519155923,0.04698382,141.05,141.03,6.43775124]
[1763519156119,0.04698382,141.05,141.04,1.88800874]
[1763519156319,3.06,141.09,141.04,1.88800874]
[1763519156510,3.06,141.09,141.05,37.32]
[1763519157415,0.0492927,141.08,141.05,37.32]
[1763519157718,3.1092927,141.08,141.05,37.32]
[1763519160125,3.1092927,141.08,141.04,37.32]
[1763519160626,3.1092927,141.08,141.03,0.05195124]
[1763519161013,9.4930927,141.08,141.03,0.05195124]
[1763519161218,3.1092927,141.08,141.04,6.3853]
[1763519161417,0.0492927,141.08,141.03,0.05195124]
[1763519161617,3.1092927,141.08,141.03,0.05195124]
[1763519161818,3.1092927,141.08,141.06,6.3844]
[1763519161819,0.0492927,141.08,141.06,6.3844]
[1763519162116,3.06,141.15,141.08,99.3028]
[1763519162323,3.06,141.18,141.1,99.2885]
[1763519162519,3.06,141.18,141.11,37.34]
[1763519162721,8.46629297,141.18,141.11,37.34]
[1763519162926,0.04544314,141.16,141.13,0.05085794]
[1763519163326,0.04544314,141.16,141.14,6.3809]
[1763519164127,3.06544314,141.16,141.13,37.39085794]
[1763519165429,3.06544314,141.16,141.04,99.3294]
[1763519165634,3.02,141.14,141.05,136.6609]
[1763519165927,3.02,141.14,141.01,99.3507]
[1763519166232,3.02,141.11,141.01,37.34]
[1763519166532,3.02,141.11,141.05,0.04544102]
[1763519166533,0.05187586,141.07,141.05,0.04544102]
[1763519168518,3.07187586,141.07,141.05,0.04544102]
[1763519169529,3.02,141.06,141.05,0.04544102]
[1763519171325,0.05187586,141.07,141.05,0.04544102]
[1763519175235,3.07187586,141.07,141.05,0.04544102]
[1763519176235,9.45617586,141.07,141.05,0.04544102]
[1763519176429,3.02,141.06,141.05,0.04544102]
[1763519177533,3.02,141.04,140.96,99.384]
[1763519177738,3.02,141.04,140.97,37.36]
[1763519178039,3.02,141.04,140.98,6.3882]
[1763519178431,0.05396982,141.02,141.0,0.05087502]
[1763519178737,0.05396982,141.02,141.0,6.43797502]
[1763519180136,0.05396982,141.02,141.0,0.05087502]
[1763519185645,3.18396982,141.02,141.0,0.05087502]
[1763519186441,6.3878,140.99,140.95,37.36]
[1763519186640,9.5178,140.99,140.95,37.36]
[1763519187338,3.13,140.99,140.96,0.04744983]
[1763519187538,0.04784299,140.98,140.96,0.04744983]
[1763519187744,0.04784299,140.98,140.96,6.43654983]
[1763519187942,0.04784299,140.98,140.96,7.85654983]
[1763519188244,0.04784299,140.98,140.96,6.43654983]
[1763519190242,3.17784299,140.98,140.96,0.04744983]
[1763519191347,0.04784299,140.98,140.96,0.04744983]
[1763519192950,0.04784299,140.98,140.96,6.43644983]
[1763519194659,0.04784299,140.98,140.97,6.3887]
[1763519195356,3.26,141.04,140.96,0.04744983]
[1763519195357,3.26,141.04,140.96,99.43414983]
[1763519195763,3.26,141.04,140.97,99.38]
[1763519195956,5.39852816,141.08,140.98,136.7299]
[1763519195957,3.26,141.07,140.98,136.7299]
[1763519196153,3.26,141.07,141.0,99.3586]
[1763519196348,0.04999095,141.05,141.03,6.3856]
[1763519196553,0.04999095,141.05,141.03,43.7456]
[1763519199659,3.30999095,141.05,141.02,0.04543086]
[1763519199863,3.30999095,141.05,141.03,37.34]
[1763519200365,0.04999095,141.05,141.03,37.34]
[1763519201160,3.30999095,141.05,141.03,37.34]
[1763519202158,0.04999095,141.05,141.03,37.34]
[1763519204370,0.04999095,141.05,141.02,6.43173086]
[1763519204570,0.04999095,141.05,141.03,37.36]
[1763519206673,0.04999095,141.05,141.03,43.7458]
[1763519212067,0.04999095,141.05,141.03,37.36]
[1763519217378,0.04999095,141.05,141.03,43.7458]
[1763519217781,0.04999095,141.05,141.03,37.36]
[1763519220882,3.30999095,141.05,141.02,0.04543086]
[1763519221385,3.30999095,141.05,140.98,37.3]
[1763519221579,3.26,141.05,140.98,37.3]
[1763519221881,3.26,141.02,140.98,43.6881]
[1763519222281,9.69830509,141.01,140.99,0.05376394]
[1763519223677,3.31140509,141.01,140.99,0.05376394]
[1763519224280,0.05140509,141.01,140.99,0.05376394]
[1763519225883,0.05140509,141.01,141.0,6.3873]
[1763519226075,0.05140509,141.01,140.99,0.05376394]
[1763519226991,0.05140509,141.01,140.99,1.94256488]
[1763519227192,0.05140509,141.01,140.99,8.33026488]
[1763519227389,0.05140509,141.01,141.0,37.3]
[1763519229493,0.05140509,141.01,141.0,43.6873]
[1763519230082,1.88880094,141.08,141.0,43.6873]
[1763519230385,3.02,141.07,141.02,6.3863]
[1763519230788,3.02,141.07,141.0,37.3]
[1763519230789,9.4043,141.07,141.0,43.6869]
[1763519230993,3.02,141.06,141.0,45.57570094]
[1763519231191,3.02,141.06,141.0,39.18880094]
[1763519231389,0.04877009,141.04,141.02,0.04826703]
[1763519231692,0.05068876,141.04,141.02,0.04826703]
[1763519232083,0.05068876,141.04,141.02,8.32336797]
[1763519232289,3.02,141.11,141.02,1.93706797]
[1763519232495,3.02,141.11,141.05,6.3849]
[1763519232688,3.02,141.11,141.05,43.6849]
[1763519233289,8.44020216,141.1,141.05,37.3]
[1763519233491,0.04724997,141.09,141.06,0.04717881]
[1763519233893,3.06724997,141.09,141.06,0.04717881]
[1763519235589,3.02,141.07,141.06,0.04717881]
[1763519239299,3.02,141.04,140.99,1.88880094]
[1763519240387,0.04712331,141.03,141.0,0.04658457]
[1763519240806,3.06712331,141.03,141.0,0.04658457]
[1763519242701,9.45312331,141.03,141.0,0.04658457]
[1763519242902,3.27,141.02,141.0,0.04658457]
[1763519245804,0.04712331,141.03,141.0,0.04658457]
[1763519246301,0.04712331,141.03,141.01,8.27560094]
[1763519247606,0.04712331,141.03,141.01,1.88880094]
[1763519248712,0.04712331,141.03,141.01,39.16880094]
[1763519248906,0.04712331,141.03,141.01,45.55560094]
[1763519252113,0.04712331,141.03,141.01,8.27560094]
[1763519252308,0.04712331,141.03,141.02,37.26]
[1763519252707,0.04712331,141.03,141.01,8.27560094]
[1763519252913,0.04712331,141.03,141.02,43.6464]
[1763519256308,3.27,141.07,141.04,6.3853]
[1763519257406,3.3218284,141.07,141.04,6.43361804]
[1763519257805,3.3218284,141.07,141.04,0.04831804]
[1763519258904,3.26,141.06,141.04,0.04831804]
[1763519259218,0.0518284,141.07,141.04,0.04831804]
[1763519259414,3.3118284,141.07,141.04,6.43381804]
[1763519261323,0.0518284,141.07,141.04,1.93711898]
[1763519262215,3.26,141.14,141.06,101.20500094]
[1763519262514,5.41809343,141.13,141.08,1.88880094]
[1763519262707,3.26,141.14,141.08,1.88880094]
[1763519263323,0.04628861,141.12,141.1,0.04763704]
[1763519263918,3.30628861,141.12,141.1,0.04763704]
[1763519266218,0.04628861,141.12,141.1,0.04763704]
[1763519267629,0.04628861,141.12,141.1,6.43033704]
[1763519268013,0.04628861,141.12,141.11,37.26]
[1763519269019,37.26,141.18,141.12,6.3818]
[1763519269232,8.66073055,141.17,141.11,39.14880094]
[1763519269426,3.26,141.17,141.11,39.14880094]
[1763519269929,3.26,141.17,141.13,6.3811]
[1763519270226,3.30914962,141.16,141.14,0.05029256]
[1763519270427,9.69248466,141.16,141.14,0.05029256]
[1763519270630,3.26,141.15,141.14,0.05029256]
[1763519270824,0.05238466,141.16,141.14,0.05029256]
[1763519271024,3.31238466,141.16,141.14,0.05029256]
[1763519273933,3.26,141.15,141.14,0.05029256]
[1763519276338,3.31238466,141.16,141.14,0.05029256]
[1763519277852,0.05238466,141.16,141.14,0.05029256]
[1763519278542,3.31238466,141.16,141.14,0.05029256]
[1763519279151,0.05238466,141.16,141.14,0.05029256]
[1763519282554,3.31238466,141.16,141.14,0.05029256]
[1763519282956,180.0,239.0,141.14,0.05029256]
[1763519282957,3.26,141.24,141.15,101.13910094]
[1763519283255,3.26,141.24,141.17,1.88880094]
[1763519283952,3.30212075,141.22,141.19,6.43142048]
[1763519284154,3.30212075,141.22,141.19,0.05272048]
[1763519284554,3.25,141.2,141.14,37.24]
[1763519284750,3.25,141.2,141.13,39.12880094]
[1763519284954,3.25,141.17,141.13,39.12880094]
[1763519285553,0.04779627,141.16,141.14,0.05266342]
[1763519288455,0.04779627,141.16,141.14,6.43356342]
[1763519291363,0.04779627,141.16,141.14,0.05266342]
[1763519291752,3.25,141.24,141.15,99.2508]
[1763519291952,3.25,141.24,141.17,102.18140985]
[1763519292159,3.25,141.24,141.18,37.22]
[1763519292756,0.05437284,141.22,141.2,6.3783]